[Event "MČR v bleskovém šachu družstev 2019"]
[Site "Teplice, Czech Republic"]
[Date "2019.09.14"]
[Round "11.21"]
[White "Formanek, Martin"]
[Black "Trepka, Jan"]
[Result "1/2-1/2"]
[TimeControl "3 mim. + 2 s"]
[WhiteFideId "316768"]
[BlackFideId "322814"]
[WhiteElo "2230"]
[BlackElo "2186"]

1. e4 {[%clk 00:03:03]} c6 {[%clk 00:03:04]} {[%emt 00:00:01]} 2. d4 {[%clk
00:02:59]} {[%emt 00:00:05]} d5 {[%clk 00:03:05]} 3. e5 {[%clk 00:03:00]}
{[%emt 00:00:03]} Bf5 {[%clk 00:03:06]} {[%emt 00:00:01]} 4. Nc3 {[%clk
00:03:00]} e6 {[%clk 00:03:07]} {[%emt 00:00:01]} 5. g4 {[%clk 00:03:01]}
{[%emt 00:00:02]} Bg6 {[%clk 00:03:08]} 6. Nge2 {[%clk 00:03:02]} c5 {[%clk
00:03:09]} 7. h4 {[%clk 00:03:00]} {[%emt 00:00:03]} h6 {[%clk 00:03:08]}
{[%emt 00:00:03]} 8. h5 {[%clk 00:03:01]} {[%emt 00:00:01]} Bh7 {[%clk
00:03:09]} 9. Be3 {[%clk 00:03:02]} {[%emt 00:00:01]} Nc6 {[%clk 00:03:06]}
{[%emt 00:00:05]} 10. f4 {[%clk 00:02:31]} {[%emt 00:00:33]} cxd4 {[%clk
00:02:51]} {[%emt 00:00:18]} 11. Nxd4 {[%clk 00:02:31]} {[%emt 00:00:02]} Nxd4
{[%clk 00:02:44]} {[%emt 00:00:08]} 12. Bxd4 {[%clk 00:02:28]} {[%emt
00:00:05]} Ne7 {[%clk 00:02:43]} {[%emt 00:00:03]} 13. Qd2 {[%clk 00:02:13]}
{[%emt 00:00:17]} Nc6 {[%clk 00:02:41]} {[%emt 00:00:04]} 14. O-O-O {[%clk
00:02:00]} {[%emt 00:00:15]} Qa5 {[%clk 00:02:17]} {[%emt 00:00:26]} 15. Kb1
{[%clk 00:01:47]} {[%emt 00:00:15]} Bb4 {[%clk 00:02:07]} {[%emt 00:00:12]} 16.
Rh3 {[%clk 00:01:30]} {[%emt 00:00:19]} O-O-O {[%clk 00:01:21]} {[%emt
00:00:49]} 17. a3 {[%clk 00:01:25]} {[%emt 00:00:07]} Bxc3 {[%clk 00:01:07]}
{[%emt 00:00:15]} 18. Rxc3 {[%clk 00:01:14]} {[%emt 00:00:14]} Kb8 {[%clk
00:01:05]} {[%emt 00:00:04]} 19. Bc5 {[%clk 00:01:05]} {[%emt 00:00:11]} Be4
{[%clk 00:00:49]} {[%emt 00:00:18]} 20. b4 {[%clk 00:00:55]} {[%emt 00:00:12]}
Qa4 {[%clk 00:00:41]} {[%emt 00:00:09]} 21. Kb2 {[%clk 00:00:49]} {[%emt
00:00:08]} Rc8 {[%clk 00:00:25]} {[%emt 00:00:18]} 22. Bd3 {[%clk 00:00:40]}
{[%emt 00:00:11]} Bxd3 {[%clk 00:00:26]} {[%emt 00:00:02]} 23. Qxd3 {[%emt
00:00:01]} a6 24. Bf2 {[%clk 00:00:34]} {[%emt 00:00:07]} Na7 {[%clk 00:00:26]}
{[%emt 00:00:05]} 25. Bxa7+ {[%clk 00:00:28]} {[%emt 00:00:07]} Kxa7 {[%clk
00:00:27]} {[%emt 00:00:01]} 26. f5 {[%clk 00:00:24]} {[%emt 00:00:07]} Qd7
{[%clk 00:00:25]} {[%emt 00:00:04]} 27. fxe6 {[%clk 00:00:14]} {[%emt
00:00:12]} fxe6 {[%clk 00:00:26]} {[%emt 00:00:01]} 28. Qd4+ {[%clk 00:00:14]}
Kb8 {[%clk 00:00:27]} 29. Rdd3 {[%clk 00:00:16]} {[%emt 00:00:02]} Rhf8 {[%clk
00:00:27]} {[%emt 00:00:02]} 30. Rc5 {[%clk 00:00:14]} {[%emt 00:00:04]} Rxc5
{[%clk 00:00:24]} {[%emt 00:00:05]} 31. Qxc5 {[%clk 00:00:15]} Rc8 {[%clk
00:00:25]} {[%emt 00:00:01]} 32. Qf2 {[%clk 00:00:13]} {[%emt 00:00:03]} Qc7
{[%clk 00:00:26]} {[%emt 00:00:02]} 33. Qe2 {[%clk 00:00:11]} {[%emt 00:00:04]}
b5 {[%clk 00:00:25]} {[%emt 00:00:02]} 34. Re3 {[%clk 00:00:05]} {[%emt
00:00:08]} Qc4 {[%clk 00:00:26]} {[%emt 00:00:01]} 35. Qxc4 {[%emt 00:00:03]}
Rxc4 {[%clk 00:00:26]} 36. Rg3 {[%clk 00:00:03]} {[%emt 00:00:05]} Re4 {[%clk
00:00:26]} {[%emt 00:00:02]} 37. g5 {[%clk 00:00:04]} Rxe5 {[%clk 00:00:27]} 38.
gxh6 {[%clk 00:00:05]} {[%emt 00:00:01]} gxh6 {[%clk 00:00:28]} 39. Rg6 {[%clk
00:00:06]} {[%emt 00:00:01]} Rxh5 {[%clk 00:00:28]} {[%emt 00:00:03]} 40. Rxe6
{[%clk 00:00:07]} Kb7 {[%clk 00:00:29]} 41. Kc3 {[%clk 00:00:08]} Rh4 {[%clk
00:00:27]} {[%emt 00:00:04]} 42. Rd6 {[%clk 00:00:08]} {[%emt 00:00:02]} d4+
{[%clk 00:00:24]} {[%emt 00:00:05]} 43. Kd3 {[%clk 00:00:10]} h5 {[%clk
00:00:24]} {[%emt 00:00:02]} 44. Rh6 {[%clk 00:00:11]} Rh2 {[%clk 00:00:16]}
{[%emt 00:00:10]} 45. Kxd4 {[%clk 00:00:11]} {[%emt 00:00:02]} Rxc2 {[%clk
00:00:15]} {[%emt 00:00:02]} 46. Rxh5 {[%clk 00:00:12]} {[%emt 00:00:02]} Rc4+
{[%clk 00:00:12]} {[%emt 00:00:05]} 47. Kd5 {[%clk 00:00:12]} {[%emt 00:00:03]}
Rc3 {[%clk 00:00:12]} {[%emt 00:00:02]} 48. Rh7+ {[%clk 00:00:12]} {[%emt
00:00:01]} Kb6 {[%clk 00:00:13]} 49. Rh6+ {[%clk 00:00:14]} {[%emt 00:00:02]}
Kb7 {[%clk 00:00:14]} {[%emt 00:00:01]} 50. Rh7+ {[%clk 00:00:14]} {[%emt
00:00:01]} 1/2-1/2

[Event "MČR v bleskovém šachu družstev 2019"]
[Site "Teplice, Czech Republic"]
[Date "2019.09.14"]
[Round "11.22"]
[White "Ruzicka, Ales"]
[Black "Dvorak, Jan"]
[Result "1-0"]
[TimeControl "3 mim. + 2 s"]
[WhiteFideId "325252"]
[BlackFideId "314870"]
[WhiteElo "2102"]
[BlackElo "2229"]

1. e4 {[%emt 00:00:02]} e6 2. d4 {[%clk 00:03:02]} {[%emt 00:00:02]} d5 {[%clk
00:03:04]} 3. Nc3 {[%emt 00:00:02]} Bb4 {[%emt 00:00:01]} 4. exd5 {[%clk
00:03:03]} {[%emt 00:00:02]} exd5 {[%emt 00:00:01]} 5. Bd3 {[%emt 00:00:01]}
Nc6 {[%clk 00:03:01]} {[%emt 00:00:06]} 6. Nge2 {[%clk 00:03:05]} {[%emt
00:00:02]} Nf6 {[%emt 00:00:02]} 7. Bf4 {[%emt 00:00:02]} O-O {[%emt 00:00:05]}
8. O-O {[%emt 00:00:03]} Re8 {[%emt 00:00:15]} 9. a3 {[%emt 00:00:03]} Bd6
{[%clk 00:02:35]} {[%emt 00:00:09]} 10. Qd2 {[%clk 00:03:05]} {[%emt 00:00:03]}
a6 {[%clk 00:02:32]} {[%emt 00:00:05]} 11. Rfe1 {[%clk 00:03:03]} {[%emt
00:00:03]} Bg4 {[%clk 00:02:26]} {[%emt 00:00:08]} 12. f3 {[%clk 00:03:04]}
{[%emt 00:00:02]} Bh5 {[%clk 00:02:27]} {[%emt 00:00:01]} 13. g4 {[%emt
00:00:08]} Bg6 14. Bxg6 {[%clk 00:02:58]} {[%emt 00:00:03]} hxg6 {[%clk
00:02:28]} 15. Ng3 {[%clk 00:02:49]} {[%emt 00:00:10]} Qd7 {[%clk 00:02:24]}
{[%emt 00:00:07]} 16. Kg2 {[%clk 00:02:42]} {[%emt 00:00:09]} Na5 {[%clk
00:02:06]} {[%emt 00:00:19]} 17. b3 {[%clk 00:02:39]} {[%emt 00:00:06]} Rxe1
{[%clk 00:01:45]} {[%emt 00:00:23]} 18. Rxe1 {[%emt 00:00:15]} Bxa3 {[%emt
00:00:01]} 19. Nb1 {[%clk 00:02:12]} {[%emt 00:00:16]} Nxb3 {[%emt 00:00:22]}
20. cxb3 {[%emt 00:00:03]} Bd6 {[%clk 00:01:27]} 21. Bxd6 {[%clk 00:02:08]}
{[%emt 00:00:06]} Qxd6 {[%clk 00:01:28]} {[%emt 00:00:01]} 22. Ne2 {[%clk
00:01:51]} {[%emt 00:00:19]} a5 {[%clk 00:01:24]} {[%emt 00:00:05]} 23. Nc1
{[%clk 00:01:50]} {[%emt 00:00:03]} a4 {[%clk 00:01:18]} {[%emt 00:00:07]} 24.
bxa4 {[%clk 00:01:50]} Rxa4 {[%clk 00:01:17]} 25. Nc3 {[%clk 00:01:49]} {[%emt
00:00:09]} Rc4 {[%clk 00:01:04]} {[%emt 00:00:15]} 26. N1e2 {[%clk 00:01:45]}
{[%emt 00:00:07]} Qc6 {[%clk 00:00:52]} {[%emt 00:00:13]} 27. Rb1 {[%clk
00:01:42]} {[%emt 00:00:05]} b6 {[%clk 00:00:51]} {[%emt 00:00:02]} 28. Rb2
{[%clk 00:01:25]} {[%emt 00:00:19]} Ne8 {[%clk 00:00:41]} {[%emt 00:00:12]} 29.
Nb5 {[%clk 00:01:25]} {[%emt 00:00:03]} Nd6 {[%clk 00:00:35]} {[%emt 00:00:09]}
30. Nxd6 {[%emt 00:00:02]} Qxd6 31. Rc2 {[%clk 00:01:19]} {[%emt 00:00:07]} Ra4
{[%clk 00:00:30]} {[%emt 00:00:08]} 32. Qe3 {[%clk 00:01:08]} {[%emt 00:00:12]}
Kh7 {[%clk 00:00:27]} {[%emt 00:00:06]} 33. h4 {[%clk 00:01:08]} {[%emt
00:00:02]} Qd7 {[%clk 00:00:23]} {[%emt 00:00:06]} 34. Ng3 {[%clk 00:00:58]}
{[%emt 00:00:12]} c6 {[%emt 00:00:12]} 35. h5 {[%emt 00:00:02]} Rc4 {[%emt
00:00:06]} 36. hxg6+ {[%emt 00:00:02]} fxg6 {[%clk 00:00:10]} 37. Re2 {[%emt
00:00:18]} c5 {[%emt 00:00:03]} 38. dxc5 {[%emt 00:00:06]} bxc5 39. Kh3 {[%clk
00:00:28]} {[%emt 00:00:11]} d4 {[%clk 00:00:10]} {[%emt 00:00:03]} 40. Qd2
{[%clk 00:00:25]} {[%emt 00:00:05]} Rc3 {[%clk 00:00:10]} {[%emt 00:00:02]} 41.
Rh2 {[%clk 00:00:25]} {[%emt 00:00:02]} Qf7 {[%emt 00:00:05]} 42. Kg2+ {[%emt
00:00:03]} Kg8 {[%clk 00:00:07]} 43. Qf2 {[%emt 00:00:13]} d3 44. Kh3 {[%emt
00:00:07]} Rc2 {[%emt 00:00:03]} 45. Qe3 {[%emt 00:00:01]} Rxh2+ {[%emt
00:00:02]} 46. Kxh2 {[%clk 00:00:11]} {[%emt 00:00:02]} c4 47. Ne4 Qc7+ {[%emt
00:00:02]} 48. Kg2 {[%emt 00:00:01]} Qe5 {[%clk 00:00:07]} {[%emt 00:00:03]} 49.
Qd2 {[%clk 00:00:06]} {[%emt 00:00:10]} Qd4 {[%clk 00:00:07]} {[%emt 00:00:02]}
50. Kg3 {[%emt 00:00:02]} Qe5+ 51. Kg2 {[%clk 00:00:07]} Qd4 {[%clk 00:00:10]}
52. Qc3 {[%emt 00:00:05]} Qe3 53. Qxc4+ {[%clk 00:00:04]} {[%emt 00:00:02]} d2
{[%clk 00:00:11]} {[%emt 00:00:01]} 1-0

[Event "MČR v bleskovém šachu družstev 2019"]
[Site "Teplice, Czech Republic"]
[Date "2019.09.14"]
[Round "11.23"]
[White "Kopta, Pavel"]
[Black "Loskot, Petr"]
[Result "1-0"]
[TimeControl "3 mim. + 2 s"]
[WhiteTitle "FM"]
[WhiteFideId "309109"]
[BlackFideId "319570"]
[WhiteElo "2234"]
[BlackElo "2010"]

1. d4 {[%clk 00:03:02]} {[%emt 00:00:01]} d5 {[%clk 00:03:04]} 2. c4 {[%clk
00:03:02]} {[%emt 00:00:02]} e6 {[%clk 00:03:05]} {[%emt 00:00:01]} 3. Nc3
{[%clk 00:03:03]} {[%emt 00:00:02]} Nf6 {[%clk 00:03:06]} 4. Bg5 {[%clk
00:03:04]} {[%emt 00:00:01]} Be7 {[%clk 00:03:07]} 5. e3 {[%clk 00:03:03]}
{[%emt 00:00:04]} h6 {[%clk 00:03:08]} {[%emt 00:00:02]} 6. Bh4 {[%clk
00:03:02]} {[%emt 00:00:02]} O-O {[%clk 00:03:06]} {[%emt 00:00:04]} 7. Rc1
{[%clk 00:03:01]} {[%emt 00:00:03]} Ne4 {[%clk 00:03:02]} {[%emt 00:00:06]} 8.
Bxe7 {[%clk 00:03:01]} {[%emt 00:00:03]} Qxe7 {[%clk 00:03:01]} {[%emt
00:00:03]} 9. Bd3 {[%clk 00:02:51]} {[%emt 00:00:11]} Nxc3 {[%clk 00:02:56]}
{[%emt 00:00:08]} 10. bxc3 {[%clk 00:02:48]} {[%emt 00:00:04]} dxc4 {[%clk
00:02:52]} {[%emt 00:00:06]} 11. Bxc4 {[%clk 00:02:49]} {[%emt 00:00:01]} e5
{[%clk 00:02:42]} {[%emt 00:00:12]} 12. Ne2 {[%clk 00:02:47]} {[%emt 00:00:04]}
c6 {[%clk 00:02:24]} {[%emt 00:00:20]} 13. O-O {[%clk 00:02:44]} {[%emt
00:00:05]} Nd7 {[%clk 00:02:17]} {[%emt 00:00:09]} 14. Bb3 {[%clk 00:02:38]}
{[%emt 00:00:08]} exd4 {[%clk 00:02:13]} {[%emt 00:00:06]} 15. cxd4 {[%clk
00:02:39]} {[%emt 00:00:02]} Nf6 {[%clk 00:02:11]} {[%emt 00:00:04]} 16. Ng3
{[%clk 00:02:36]} {[%emt 00:00:05]} Be6 {[%clk 00:02:09]} {[%emt 00:00:03]} 17.
Qc2 {[%clk 00:02:27]} {[%emt 00:00:11]} Rfd8 {[%clk 00:01:58]} {[%emt
00:00:13]} 18. Rb1 {[%clk 00:02:20]} {[%emt 00:00:10]} Rab8 {[%clk 00:01:47]}
{[%emt 00:00:13]} 19. Rfc1 {[%clk 00:02:18]} {[%emt 00:00:04]} Bd5 {[%clk
00:01:12]} {[%emt 00:00:36]} 20. Bxd5 {[%clk 00:02:11]} {[%emt 00:00:09]} Rxd5
{[%clk 00:01:06]} {[%emt 00:00:08]} 21. Rb3 {[%clk 00:02:08]} {[%emt 00:00:04]}
h5 {[%clk 00:01:00]} {[%emt 00:00:09]} 22. h3 {[%clk 00:02:03]} {[%emt
00:00:07]} h4 {[%clk 00:00:59]} {[%emt 00:00:02]} 23. Ne2 {[%clk 00:02:02]}
{[%emt 00:00:03]} Ne4 {[%clk 00:00:54]} {[%emt 00:00:08]} 24. Nf4 {[%clk
00:01:42]} {[%emt 00:00:21]} Rf5 {[%clk 00:00:53]} {[%emt 00:00:04]} 25. f3
{[%clk 00:01:32]} {[%emt 00:00:12]} Nd6 {[%clk 00:00:45]} {[%emt 00:00:10]} 26.
Qd2 {[%clk 00:01:23]} {[%emt 00:00:11]} g5 {[%clk 00:00:31]} {[%emt 00:00:17]}
27. Nd3 {[%clk 00:01:18]} {[%emt 00:00:06]} Qf6 {[%clk 00:00:25]} {[%emt
00:00:08]} 28. Ne5 {[%clk 00:01:16]} {[%emt 00:00:04]} Qg7 {[%clk 00:00:09]}
{[%emt 00:00:18]} 29. Rxc6 {[%clk 00:01:07]} {[%emt 00:00:11]} Rd8 {[%clk
00:00:05]} {[%emt 00:00:06]} 30. Rc7 {[%clk 00:01:01]} {[%emt 00:00:09]} Ne8
{[%clk 00:00:04]} {[%emt 00:00:02]} 31. Qc2 {[%clk 00:00:58]} {[%emt 00:00:05]}
Rxe5 {[%clk 00:00:00]} {[%emt 00:00:05]} 32. dxe5 {[%clk 00:00:58]} {[%emt
00:00:05]} Nxc7 {[%clk 00:00:00]} {[%emt 00:00:04]} 33. Qxc7 {[%clk 00:00:58]}
{[%emt 00:00:02]} Rd1+ {[%clk 00:00:00]} {[%emt 00:00:02]} 34. Kh2 {[%clk
00:00:58]} Rd2 {[%clk 00:00:00]} {[%emt 00:00:07]} 35. Rxb7 {[%clk 00:00:58]}
{[%emt 00:00:06]} Rxa2 {[%clk 00:00:00]} {[%emt 00:00:01]} 36. e6 {[%clk
00:00:58]} {[%emt 00:00:11]} 1-0

[Event "MČR v bleskovém šachu družstev 2019"]
[Site "Teplice, Czech Republic"]
[Date "2019.09.14"]
[Round "11.24"]
[White "Meszaros, Ludek"]
[Black "Chmel, Kristian"]
[Result "1-0"]
[TimeControl "3 mim. + 2 s"]
[WhiteFideId "308153"]
[BlackFideId "344281"]
[WhiteElo "2070"]
[BlackElo "2097"]

1. e4 {[%clk 00:03:03]} e5 {[%clk 00:03:03]} {[%emt 00:00:02]} 2. Nf3 {[%clk
00:03:04]} {[%emt 00:00:01]} Nc6 {[%clk 00:03:04]} {[%emt 00:00:01]} 3. Bb5
{[%clk 00:03:06]} f5 {[%clk 00:03:04]} {[%emt 00:00:02]} 4. d4 {[%clk
00:03:05]} {[%emt 00:00:02]} fxe4 {[%clk 00:02:28]} {[%emt 00:00:39]} 5. Nxe5
{[%clk 00:03:05]} {[%emt 00:00:02]} Nf6 {[%clk 00:02:06]} {[%emt 00:00:24]} 6.
O-O {[%clk 00:03:03]} {[%emt 00:00:03]} Be7 {[%clk 00:02:01]} {[%emt 00:00:07]}
7. Bg5 {[%clk 00:03:03]} {[%emt 00:00:03]} O-O {[%clk 00:01:56]} {[%emt
00:00:07]} 8. c4 {[%clk 00:02:57]} {[%emt 00:00:07]} Ne8 {[%clk 00:01:14]}
{[%emt 00:00:44]} 9. Be3 {[%clk 00:02:41]} {[%emt 00:00:19]} Bf6 {[%clk
00:01:01]} {[%emt 00:00:15]} 10. Ng4 {[%clk 00:02:37]} {[%emt 00:00:05]} d6
{[%clk 00:00:55]} {[%emt 00:00:09]} 11. Nxf6+ {[%clk 00:02:36]} {[%emt
00:00:02]} Nxf6 {[%clk 00:00:56]} {[%emt 00:00:02]} 12. Nc3 {[%clk 00:02:36]}
{[%emt 00:00:02]} a6 {[%clk 00:00:54]} {[%emt 00:00:04]} 13. Bxc6 {[%clk
00:02:32]} {[%emt 00:00:05]} bxc6 {[%clk 00:00:55]} 14. Qa4 {[%clk 00:02:27]}
{[%emt 00:00:08]} Bd7 {[%clk 00:00:53]} {[%emt 00:00:03]} 15. Qa5 {[%clk
00:02:26]} {[%emt 00:00:04]} Ng4 {[%clk 00:00:49]} {[%emt 00:00:06]} 16. Qh5
{[%clk 00:02:12]} {[%emt 00:00:14]} g6 {[%clk 00:00:36]} {[%emt 00:00:16]} 17.
Qg5 {[%clk 00:02:03]} {[%emt 00:00:09]} Nxe3 {[%clk 00:00:33]} {[%emt
00:00:07]} 18. Qxe3 {[%clk 00:02:04]} {[%emt 00:00:02]} Bf5 {[%clk 00:00:31]}
{[%emt 00:00:04]} 19. d5 {[%clk 00:01:48]} {[%emt 00:00:18]} Rb8 {[%clk
00:00:25]} {[%emt 00:00:08]} 20. b3 {[%clk 00:01:48]} {[%emt 00:00:02]} Re8
{[%clk 00:00:24]} {[%emt 00:00:03]} 21. Rae1 {[%clk 00:01:45]} {[%emt
00:00:05]} Qh4 {[%clk 00:00:19]} {[%emt 00:00:07]} 22. Ne2 {[%clk 00:01:38]}
{[%emt 00:00:08]} Re7 {[%clk 00:00:11]} {[%emt 00:00:10]} 23. dxc6 {[%clk
00:01:33]} {[%emt 00:00:07]} Rbe8 {[%clk 00:00:11]} {[%emt 00:00:03]} 24. Ng3
{[%clk 00:01:24]} {[%emt 00:00:10]} Rf8 {[%clk 00:00:07]} {[%emt 00:00:06]} 25.
c5 {[%clk 00:01:19]} {[%emt 00:00:07]} d5 {[%clk 00:00:07]} {[%emt 00:00:03]}
26. Rd1 {[%clk 00:01:12]} {[%emt 00:00:09]} Be6 {[%clk 00:00:07]} {[%emt
00:00:02]} 27. Qe2 {[%clk 00:01:05]} {[%emt 00:00:08]} Qf6 {[%clk 00:00:07]}
{[%emt 00:00:02]} 28. Qxa6 {[%clk 00:01:05]} {[%emt 00:00:03]} h5 {[%clk
00:00:08]} 29. f4 {[%clk 00:00:32]} {[%emt 00:00:35]} h4 {[%clk 00:00:09]} 30.
Ne2 {[%clk 00:00:33]} {[%emt 00:00:01]} h3 {[%clk 00:00:09]} {[%emt 00:00:02]}
31. g3 {[%clk 00:00:30]} {[%emt 00:00:05]} Bg4 {[%clk 00:00:08]} {[%emt
00:00:02]} 32. Rde1 {[%clk 00:00:30]} {[%emt 00:00:03]} e3 {[%clk 00:00:07]}
{[%emt 00:00:03]} 33. Qd3 {[%clk 00:00:27]} {[%emt 00:00:04]} Bf5 {[%clk
00:00:07]} {[%emt 00:00:03]} 34. Qd4 {[%clk 00:00:27]} {[%emt 00:00:01]} Qf7
{[%clk 00:00:07]} {[%emt 00:00:03]} 35. Rf3 {[%clk 00:00:21]} {[%emt 00:00:08]}
Re4 {[%clk 00:00:07]} {[%emt 00:00:01]} 36. Qc3 {[%clk 00:00:14]} {[%emt
00:00:08]} Rfe8 {[%clk 00:00:09]} {[%emt 00:00:02]} 37. Nd4 {[%clk 00:00:13]}
{[%emt 00:00:03]} Qg7 {[%clk 00:00:10]} {[%emt 00:00:01]} 38. Ne2 {[%clk
00:00:10]} {[%emt 00:00:05]} Qf7 {[%clk 00:00:10]} {[%emt 00:00:01]} 39. Nd4
{[%clk 00:00:08]} {[%emt 00:00:04]} Qg7 {[%clk 00:00:11]} {[%emt 00:00:01]} 40.
Ne2 {[%clk 00:00:09]} d4 {[%clk 00:00:12]} {[%emt 00:00:02]} 41. Qc4+ {[%clk
00:00:09]} {[%emt 00:00:02]} Be6 {[%clk 00:00:12]} {[%emt 00:00:02]} 42. Qd3
{[%clk 00:00:10]} Bf5 {[%clk 00:00:12]} {[%emt 00:00:03]} 43. Qc4+ {[%clk
00:00:11]} Kh8 {[%clk 00:00:14]} 44. Rd1 {[%clk 00:00:11]} {[%emt 00:00:02]}
R4e7 {[%clk 00:00:14]} {[%emt 00:00:02]} 45. Qxd4 {[%clk 00:00:10]} {[%emt
00:00:02]} Ra8 {[%clk 00:00:07]} {[%emt 00:00:10]} 46. Qxg7+ {[%clk 00:00:10]}
{[%emt 00:00:02]} Kxg7 {[%clk 00:00:08]} 47. a4 {[%clk 00:00:12]} Bc2 {[%clk
00:00:08]} {[%emt 00:00:03]} 48. Rd7 {[%clk 00:00:13]} Rae8 {[%clk 00:00:07]}
{[%emt 00:00:03]} 49. Nd4 {[%clk 00:00:14]} Bd3 {[%clk 00:00:07]} {[%emt
00:00:03]} 50. Rxe3 {[%clk 00:00:12]} {[%emt 00:00:04]} Bf5 {[%clk 00:00:06]}
{[%emt 00:00:03]} 51. Rexe7+ {[%clk 00:00:13]} 1-0

[Event "MČR v bleskovém šachu družstev 2019"]
[Site "Teplice, Czech Republic"]
[Date "2019.09.14"]
[Round "11.25"]
[White "Krejci, Jan"]
[Black "Vanecek, Jiri"]
[Result "1-0"]
[TimeControl "3 mim. + 2 s"]
[WhiteTitle "GM"]
[WhiteFideId "322156"]
[BlackFideId "305332"]
[WhiteElo "2527"]
[BlackElo "1999"]

1. d4 {[%clk 00:03:03]} b6 {[%clk 00:03:02]} {[%emt 00:00:03]} 2. e4 {[%clk
00:03:04]} {[%emt 00:00:01]} Bb7 {[%clk 00:03:03]} 3. Nc3 {[%clk 00:03:05]}
{[%emt 00:00:02]} e6 {[%clk 00:03:04]} 4. Bd3 {[%clk 00:03:06]} c5 {[%clk
00:03:06]} 5. d5 {[%clk 00:03:05]} {[%emt 00:00:04]} Nf6 {[%clk 00:02:59]}
{[%emt 00:00:09]} 6. Nf3 {[%clk 00:02:37]} {[%emt 00:00:30]} exd5 {[%clk
00:02:36]} {[%emt 00:00:24]} 7. exd5 {[%clk 00:02:36]} {[%emt 00:00:04]} Bd6
{[%clk 00:02:08]} {[%emt 00:00:30]} 8. O-O {[%clk 00:02:34]} {[%emt 00:00:04]}
O-O {[%clk 00:02:09]} {[%emt 00:00:01]} 9. Nb5 {[%clk 00:02:29]} {[%emt
00:00:07]} Ne8 {[%clk 00:01:42]} {[%emt 00:00:28]} 10. Re1 {[%clk 00:02:27]}
{[%emt 00:00:04]} a6 {[%clk 00:01:17]} {[%emt 00:00:28]} 11. Rxe8 {[%clk
00:02:25]} {[%emt 00:00:04]} Bxh2+ {[%clk 00:01:17]} {[%emt 00:00:01]} 12. Nxh2
{[%clk 00:02:22]} {[%emt 00:00:06]} Rxe8 {[%clk 00:01:18]} {[%emt 00:00:01]} 13.
Nd6 {[%clk 00:02:22]} {[%emt 00:00:02]} Bc8 {[%clk 00:00:13]} {[%emt 00:01:07]}
14. Bxh7+ {[%clk 00:02:10]} {[%emt 00:00:13]} Kxh7 {[%clk 00:00:09]} {[%emt
00:00:06]} 15. Qh5+ {[%clk 00:02:11]} 1-0

[Event "MČR v bleskovém šachu družstev 2019"]
[Site "Teplice, Czech Republic"]
[Date "2019.09.14"]
[Round "11.26"]
[White "Zacek, Petr"]
[Black "Sorm, Daniel"]
[Result "0-1"]
[TimeControl "3 mim. + 2 s"]
[BlackTitle "FM"]
[WhiteFideId "320501"]
[BlackFideId "5400139"]
[WhiteElo "2009"]
[BlackElo "2310"]

1. d4 {[%clk 00:03:02]} {[%emt 00:12:39]} d5 {[%clk 00:03:03]} {[%emt
00:00:01]} 2. Nf3 {[%clk 00:03:03]} {[%emt 00:00:01]} Nf6 {[%clk 00:03:05]}
{[%emt 00:00:01]} 3. c4 {[%clk 00:03:04]} dxc4 {[%clk 00:03:06]} {[%emt
00:00:01]} 4. Nc3 {[%clk 00:03:06]} a6 {[%clk 00:02:58]} {[%emt 00:00:10]} 5.
a4 {[%clk 00:03:06]} Nc6 {[%clk 00:02:59]} 6. e3 {[%clk 00:03:08]} {[%emt
00:00:02]} Na5 {[%clk 00:03:00]} {[%emt 00:00:01]} 7. Ne5 {[%clk 00:03:07]}
{[%emt 00:00:03]} Be6 {[%clk 00:02:52]} {[%emt 00:00:10]} 8. Be2 {[%clk
00:03:05]} {[%emt 00:00:04]} g6 {[%clk 00:02:47]} {[%emt 00:00:08]} 9. O-O
{[%clk 00:03:05]} {[%emt 00:00:02]} Bg7 {[%clk 00:02:48]} 10. Bd2 {[%clk
00:03:03]} {[%emt 00:00:03]} O-O {[%clk 00:02:37]} {[%emt 00:00:14]} 11. Bf3
{[%clk 00:02:53]} {[%emt 00:00:12]} c6 {[%clk 00:02:36]} {[%emt 00:00:03]} 12.
g3 {[%clk 00:02:41]} {[%emt 00:00:14]} Qc7 {[%clk 00:02:22]} {[%emt 00:00:16]}
13. Bg2 {[%clk 00:02:37]} {[%emt 00:00:07]} b5 {[%clk 00:02:06]} {[%emt
00:00:17]} 14. axb5 {[%clk 00:02:35]} {[%emt 00:00:04]} axb5 {[%clk 00:02:07]}
{[%emt 00:00:02]} 15. Qf3 {[%clk 00:02:17]} {[%emt 00:00:20]} Nd5 {[%clk
00:01:32]} {[%emt 00:00:37]} 16. e4 {[%clk 00:01:52]} {[%emt 00:00:27]} Nxc3
{[%clk 00:01:23]} {[%emt 00:00:11]} 17. Bxc3 {[%clk 00:01:52]} {[%emt
00:00:01]} Nb3 {[%clk 00:01:06]} {[%emt 00:00:19]} 18. Rxa8 {[%clk 00:01:41]}
Rxa8 {[%clk 00:01:08]} 19. Rd1 {[%clk 00:01:31]} {[%emt 00:00:13]} Nxd4 {[%clk
00:01:02]} {[%emt 00:00:07]} 20. Bxd4 {[%clk 00:01:21]} {[%emt 00:00:13]} Bxe5
{[%clk 00:01:03]} 21. Bxe5 {[%clk 00:01:20]} {[%emt 00:00:03]} Qxe5 {[%clk
00:01:04]} 22. Qe2 {[%clk 00:01:18]} {[%emt 00:00:04]} b4 {[%clk 00:00:56]}
{[%emt 00:00:09]} 23. Kh1 {[%clk 00:01:17]} {[%emt 00:00:04]} Qc5 {[%clk
00:00:56]} {[%emt 00:00:02]} 24. f4 {[%clk 00:01:14]} {[%emt 00:00:04]} f6
{[%clk 00:00:51]} {[%emt 00:00:08]} 25. Rc1 {[%clk 00:01:15]} {[%emt 00:00:01]}
c3 {[%clk 00:00:49]} {[%emt 00:00:03]} 26. e5 {[%clk 00:00:55]} {[%emt
00:00:22]} fxe5 {[%clk 00:00:41]} {[%emt 00:00:11]} 27. fxe5 {[%clk 00:00:56]}
{[%emt 00:00:01]} Ra2 {[%clk 00:00:39]} {[%emt 00:00:04]} 28. Rc2 {[%clk
00:00:52]} {[%emt 00:00:06]} Rxb2 {[%clk 00:00:32]} {[%emt 00:00:09]} 29. Rxb2
{[%clk 00:00:52]} {[%emt 00:00:03]} cxb2 {[%clk 00:00:32]} 30. Qxb2 {[%clk
00:00:53]} Qc3 {[%clk 00:00:31]} {[%emt 00:00:03]} 31. Qb1 {[%clk 00:00:50]}
{[%emt 00:00:05]} b3 {[%clk 00:00:29]} {[%emt 00:00:05]} 32. Be4 {[%clk
00:00:49]} {[%emt 00:00:02]} b2 {[%clk 00:00:26]} {[%emt 00:00:05]} 33. Bc2
{[%clk 00:00:47]} {[%emt 00:00:04]} Bd5+ {[%clk 00:00:17]} {[%emt 00:00:11]} 34.
Kg1 {[%clk 00:00:44]} {[%emt 00:00:05]} Qd2 {[%clk 00:00:14]} {[%emt 00:00:03]}
35. Be4 {[%clk 00:00:36]} {[%emt 00:00:12]} Qe3+ {[%clk 00:00:12]} {[%emt
00:00:04]} 0-1